bitfinex-derivatives/quotes_BTCF0:USTF0_20241104
["timestamp","ask_amount","ask_price","bid_price","bid_amount"]
[1730755667379,0.3608,67558.0,67540.0,0.02749881]
[1730755667680,0.3608,67552.0,67549.0,0.074075]
[1730755668080,0.3608,67552.0,67550.0,0.074074]
[1730755668377,0.3608,67552.0,67551.0,0.074073]
[1730755668567,0.3608,67552.0,67547.0,0.074077]
[1730755668767,0.3608,67554.0,67547.0,0.074077]
[1730755669082,0.3608,67554.0,67545.0,0.21357573]
[1730755669372,0.3608,67554.0,67550.0,0.074073]
[1730755670764,0.3608,67554.0,67545.0,0.21357573]
[1730755671174,0.3608,67554.0,67550.0,0.074073]
[1730755671972,0.3608,67554.0,67545.0,0.21357573]
[1730755672181,0.3608,67554.0,67539.0,0.3608]
[1730755672182,0.3608,67554.0,67553.0,0.074071]
[1730755672378,0.3608,67565.0,67560.0,0.074063]
[1730755672575,0.3608,67565.0,67560.0,0.21357573]
[1730755672773,0.3608,67565.0,67564.0,0.074059]
[1730755675080,0.3608,67565.0,67564.0,1.574059]
[1730755675476,0.3608,67565.0,67559.0,0.074064]
[1730755676085,0.074064,67559.0,67553.0,0.3608]
[1730755676272,0.3608,67565.0,67553.0,0.3608]
[1730755676273,0.074067,67557.0,67553.0,0.3608]
[1730755676676,0.0915,67564.0,67553.0,0.3608]
[1730755676677,0.074068,67556.0,67553.0,0.3608]
[1730755676986,0.074072,67552.0,67550.0,0.00222039]
[1730755677287,0.3608,67551.0,67550.0,0.00222039]
[1730755677479,0.3608,67551.0,67545.0,0.21357573]
[1730755677676,0.3608,67551.0,67548.0,0.074075]
[1730755677871,0.3608,67551.0,67549.0,0.074075]
[1730755678076,0.3608,67551.0,67550.0,0.074074]
[1730755679769,0.3608,67552.0,67550.0,0.074074]
[1730755679974,0.074069,67555.0,67550.0,0.074074]
[1730755680174,0.3608,67552.0,67550.0,0.074074]
[1730755680879,0.434866,67558.0,67551.0,0.074072]
[1730755681474,0.074067,67557.0,67551.0,0.074072]
[1730755681888,0.3608,67558.0,67557.0,0.074067]
[1730755682183,0.3608,67558.0,67553.0,0.21357573]
[1730755682184,0.3608,67565.0,67564.0,0.074059]
[1730755682573,0.39928261,67565.0,67564.0,0.074059]
[1730755683081,0.3608,67565.0,67564.0,0.074059]
[1730755683579,0.4045,67577.0,67562.0,1.50084]
[1730755683580,0.3608,67569.0,67562.0,1.50084]
[1730755683885,0.3608,67569.0,67566.0,0.074056]
[1730755684076,0.03871406,67568.0,67567.0,0.074056]
[1730755684273,0.3608,67569.0,67562.0,1.50076]
[1730755684474,0.3608,67569.0,67568.0,0.074055]
[1730755684677,0.39962674,67569.0,67568.0,0.074055]
[1730755684875,0.3608,67569.0,67568.0,0.28763073]
[1730755685486,0.3608,67577.0,67576.0,0.074046]
[1730755685683,0.3608,67577.0,67568.0,0.28763073]
[1730755685684,0.074033,67588.0,67575.0,0.21357573]
[1730755685885,0.03931853,67587.0,67583.0,0.21357573]
[1730755686087,0.03931853,67586.0,67585.0,0.074035]
[1730755686292,0.03931853,67586.0,67583.0,0.21357573]
[1730755686583,0.03931853,67585.0,67583.0,0.21357573]
[1730755686785,0.3608,67589.0,67583.0,0.21357573]
[1730755686786,0.03931853,67584.0,67583.0,0.21357573]
[1730755686988,0.03931853,67584.0,67580.0,0.074041]
[1730755687190,0.3608,67589.0,67581.0,0.07404]
[1730755687191,0.03903167,67583.0,67581.0,0.07404]
[1730755687379,0.3608,67583.0,67582.0,0.074039]
[1730755687885,0.3608,67583.0,67579.0,0.074041]
[1730755688184,0.3608,67583.0,67580.0,0.074041]
[1730755688891,0.3608,67583.0,67581.0,0.07404]
[1730755689488,0.3608,67583.0,67576.0,0.21357573]
[1730755689489,0.3608,67583.0,67577.0,0.074044]
[1730755689787,0.3608,67583.0,67569.0,0.00221967]
[1730755689788,0.074049,67573.0,67569.0,0.07627267]
[1730755689994,0.3608,67571.0,67569.0,0.07627267]
[1730755690189,0.3608,67571.0,67569.0,0.074053]
[1730755691191,0.3608,67571.0,67570.0,0.074052]
[1730755691392,0.3608,67582.0,67581.0,0.07404]
[1730755692294,0.3608,67582.0,67571.0,0.074051]
[1730755692487,0.3608,67572.0,67571.0,0.074051]
[1730755693186,0.3608,67576.0,67574.0,0.074048]
[1730755693887,0.3608,67576.0,67556.0,2.07437573]
[1730755693888,0.44396,67575.0,67556.0,2.07437573]
[1730755694088,0.074064,67560.0,67557.0,0.074066]
[1730755694390,0.3608,67562.0,67558.0,0.074065]
[1730755694593,0.3608,67562.0,67555.0,0.00222009]
[1730755694792,0.3608,67562.0,67559.0,0.074064]
[1730755695195,0.3608,67562.0,67556.0,0.21357573]
[1730755695494,0.074063,67560.0,67556.0,0.28764373]
[1730755695998,0.074063,67560.0,67556.0,0.074068]
[1730755696382,0.074063,67560.0,67557.0,0.074066]
[1730755696587,0.3608,67562.0,67559.0,0.074063]
[1730755696785,0.3608,67562.0,67561.0,0.074062]
[1730755697098,0.3608,67567.0,67566.0,0.074057]
[1730755699087,0.0437,67574.0,67567.0,0.074055]
[1730755699088,0.3608,67572.0,67567.0,0.074055]
[1730755699485,0.3608,67572.0,67565.0,0.21357573]
[1730755699699,0.3608,67572.0,67570.0,0.074051]
[1730755701702,0.3608,67572.0,67571.0,0.074051]
[1730755702091,0.3608,67580.0,67566.0,1.50076]
[1730755702295,0.3608,67580.0,67576.0,0.074045]
[1730755702496,0.3608,67580.0,67572.0,0.21357573]
[1730755702695,0.434841,67580.0,67575.0,0.074046]
[1730755703000,0.3608,67580.0,67575.0,0.074046]
[1730755703898,0.074044,67578.0,67575.0,0.074046]
[1730755705503,0.074044,67578.0,67576.0,0.074045]
[1730755705801,0.074044,67578.0,67572.0,0.21357573]
[1730755705802,0.23513146,67578.0,67572.0,0.16905576]
[1730755706003,0.14742256,67574.0,67573.0,0.074049]
[1730755706303,0.23063441,67574.0,67573.0,0.074049]
[1730755706603,0.13411952,67574.0,67573.0,0.074049]
[1730755707804,0.13118682,67574.0,67573.0,0.074049]
[1730755708102,0.49198682,67574.0,67569.0,0.074053]
[1730755708297,0.22149027,67571.0,67569.0,0.074053]
[1730755708605,0.13118682,67570.0,67569.0,0.074053]
[1730755708906,0.13118682,67570.0,67561.0,0.074062]
[1730755708907,0.07406,67564.0,67561.0,0.074062]
[1730755709106,0.50826374,67562.0,67551.0,0.21357573]
[1730755709311,0.14746374,67558.0,67557.0,0.074066]
[1730755709500,0.52188746,67562.0,67559.0,0.074064]
[1730755709691,0.52188746,67562.0,67557.0,0.21357573]
[1730755709692,0.28959,67561.0,67560.0,0.074063]
[1730755710201,0.12850254,67561.0,67560.0,0.074063]
[1730755710900,0.27598823,67561.0,67560.0,0.074063]
[1730755711303,0.12850254,67561.0,67560.0,0.518103]
[1730755711696,0.04283418,67561.0,67560.0,0.518103]
[1730755711898,0.14748569,67567.0,67566.0,0.074057]
[1730755712104,0.03742189,67567.0,67566.0,0.28763273]
[1730755712302,0.3608,67576.0,67573.0,0.074049]
[1730755712614,0.14748569,67588.0,67587.0,0.074034]
[1730755712798,0.0445,67599.0,67595.0,0.074024]
[1730755713102,0.118522,67599.0,67590.0,0.07403]
[1730755713506,0.118522,67599.0,67593.0,0.074027]
[1730755714105,0.118522,67599.0,67584.0,1.50084]
[1730755714106,0.3608,67594.0,67584.0,1.50084]
[1730755714312,0.3608,67594.0,67588.0,0.074033]
[1730755714501,0.074029,67592.0,67588.0,0.074033]
[1730755715008,0.074036,67585.0,67584.0,1.50076]
[1730755715203,0.074032,67589.0,67584.0,1.5]
[1730755715502,0.3608,67587.0,67585.0,0.074036]
[1730755715910,0.3608,67587.0,67586.0,0.074035]
[1730755716098,0.3608,67592.0,67591.0,0.074029]
[1730755718111,0.3608,67592.0,67589.0,1.50088]
[1730755718311,0.3608,67592.0,67585.0,0.074036]
[1730755718312,0.07403,67590.0,67585.0,0.074036]
[1730755718703,0.07403,67590.0,67586.0,0.074034]
[1730755719002,0.074032,67589.0,67581.0,0.21357573]
[1730755719206,0.3608,67592.0,67584.0,0.074037]
[1730755719207,0.074033,67588.0,67584.0,0.074037]
[1730755719404,0.074033,67588.0,67581.0,0.21357573]
[1730755719707,0.07403,67591.0,67581.0,0.21357573]
[1730755719913,0.07403,67591.0,67587.0,0.074033]
[1730755720301,0.07403,67591.0,67581.0,0.21357573]
[1730755720608,0.07403,67591.0,67588.0,0.074033]
[1730755720811,0.3608,67592.0,67581.0,0.21357573]
[1730755721011,0.3608,67592.0,67591.0,0.074029]
[1730755722008,0.46216,67600.0,67594.0,0.074025]
[1730755722212,0.074022,67598.0,67594.0,0.074025]
[1730755722715,0.074022,67598.0,67589.0,0.21357573]
[1730755722716,0.03839755,67597.0,67589.0,0.21357573]
[1730755722912,0.03839755,67596.0,67589.0,0.21357573]
[1730755723107,0.46220001,67600.0,67596.0,0.074024]
[1730755723310,0.03853502,67599.0,67596.0,0.074024]
[1730755723516,0.03853502,67598.0,67596.0,0.074024]
[1730755723720,0.03853502,67597.0,67596.0,0.074024]
[1730755724915,0.07705188,67597.0,67596.0,0.074024]
[1730755725212,0.03851686,67597.0,67596.0,0.28759973]
[1730755725615,0.46216,67600.0,67599.0,0.074021]
[1730755725917,0.49946732,67600.0,67599.0,0.074021]
[1730755726215,0.49946732,67600.0,67596.0,0.21357573]
[1730755726415,0.074022,67598.0,67596.0,0.21357573]
[1730755726605,0.11269032,67597.0,67596.0,0.21357573]
[1730755726807,0.11269032,67597.0,67582.0,0.21357573]
[1730755726808,0.03866732,67597.0,67582.0,0.21357573]
[1730755727010,0.074033,67589.0,67582.0,0.21357573]
[1730755727209,0.3608,67585.0,67582.0,0.21357573]
[1730755727407,0.3608,67585.0,67584.0,0.074037]
[1730755727911,0.49469607,67585.0,67584.0,0.074037]
[1730755728110,0.44387321,67585.0,67584.0,0.074037]
[1730755728610,0.08307321,67585.0,67584.0,0.074037]
[1730755728915,0.074032,67589.0,67584.0,0.074037]
[1730755729112,0.13403022,67588.0,67584.0,0.074037]
[1730755729311,0.13403092,67587.0,67584.0,0.074037]
[1730755729513,0.13403092,67586.0,67584.0,0.074037]
[1730755729715,0.13403092,67585.0,67584.0,0.074037]
[1730755730114,0.08315688,67585.0,67584.0,0.074037]
[1730755730416,0.13404043,67588.0,67582.0,0.21357573]
[1730755730617,0.13409521,67587.0,67585.0,0.074035]
[1730755730914,0.13409521,67586.0,67585.0,0.074035]
[1730755731119,0.13409521,67586.0,67574.0,1.71433573]
[1730755731316,0.074046,67576.0,67573.0,0.00221967]
[1730755731616,0.074048,67574.0,67573.0,0.00221967]
[1730755731818,0.13409521,67574.0,67573.0,0.07626867]
[1730755733014,0.20814321,67574.0,67573.0,0.00221967]
[1730755733211,0.13409521,67574.0,67573.0,0.00221967]
[1730755733618,0.13146187,67574.0,67573.0,0.00221967]
[1730755734819,0.13146187,67574.0,67573.0,0.07626867]
[1730755735820,0.074045,67578.0,67573.0,0.12045844]
[1730755736017,0.074045,67578.0,67573.0,0.07626867]
[1730755736213,0.074045,67578.0,67573.0,0.12045844]
[1730755737014,0.074048,67575.0,67573.0,0.04640944]
[1730755737410,0.434843,67579.0,67573.0,0.12045844]
[1730755737611,0.434843,67579.0,67573.0,0.04640944]
[1730755738521,0.434843,67579.0,67576.0,0.074046]
[1730755738823,0.3608,67593.0,67574.0,0.21357573]
[1730755739027,0.074037,67584.0,67579.0,0.074042]
[1730755740524,0.07404,67581.0,67580.0,0.04418977]
[1730755740723,0.074029,67592.0,67576.0,0.05891969]
[1730755740724,0.074045,67577.0,67576.0,0.04418977]
[1730755740914,0.074046,67576.0,67573.0,0.12045844]
[1730755741109,0.3608,67577.0,67573.0,0.12045844]
[1730755741110,0.074048,67574.0,67573.0,0.04640944]
[1730755741311,0.074048,67574.0,67573.0,0.00221967]
[1730755741514,0.074048,67574.0,67573.0,0.04640944]
[1730755741711,0.3608,67577.0,67573.0,0.04640944]
[1730755741911,0.3608,67577.0,67576.0,0.074046]
[1730755742109,0.3608,67577.0,67573.0,0.00221967]
[1730755742313,0.074048,67574.0,67573.0,0.00221967]
[1730755743725,0.074057,67567.0,67562.0,1.5]
[1730755743921,0.074057,67567.0,67566.0,0.074055]
[1730755744926,0.074059,67565.0,67564.0,0.074056]
[1730755746118,0.3608,67569.0,67568.0,0.074055]
[1730755746628,0.074059,67565.0,67555.0,0.3608]
[1730755746825,0.3608,67569.0,67559.0,0.074064]
[1730755746826,0.074066,67560.0,67559.0,0.074064]
[1730755747126,0.3608,67561.0,67555.0,0.3608]
[1730755747127,0.3608,67561.0,67560.0,0.074063]
[1730755748526,0.3608,67562.0,67561.0,0.074062]
[1730755748928,0.434861,67562.0,67561.0,0.074062]
[1730755750222,0.074069,67555.0,67554.0,0.00084]
[1730755750423,0.3608,67555.0,67546.0,0.14231162]
[1730755750728,0.3608,67555.0,67554.0,0.07407]
[1730755752036,0.074075,67550.0,67548.0,0.074076]
[1730755752336,0.3608,67549.0,67548.0,0.074076]
[1730755753026,0.3608,67549.0,67541.0,0.074084]
[1730755753223,0.3608,67542.0,67535.0,0.14717409]
[1730755753435,0.3608,67542.0,67527.0,0.14231162]
[1730755753436,0.074093,67533.0,67532.0,0.074094]
[1730755754634,0.074098,67529.0,67525.0,0.11829077]
[1730755754847,0.074098,67529.0,67525.0,0.074101]
[1730755754848,0.3608,67526.0,67525.0,0.074101]
[1730755755532,0.074102,67525.0,67522.0,0.00222136]
[1730755755923,0.3608,67526.0,67525.0,0.074102]
[1730755756234,0.3608,67534.0,67533.0,0.074093]
[1730755761243,0.3608,67534.0,67529.0,0.04418977]
[1730755761433,0.074097,67529.0,67523.0,0.11829377]
[1730755761630,0.3608,67528.0,67524.0,0.074103]
[1730755764941,0.3608,67528.0,67527.0,0.074099]
[1730755766033,0.3608,67528.0,67522.0,0.00222136]
[1730755766034,0.0741,67527.0,67522.0,0.00222136]
[1730755766741,0.3608,67528.0,67522.0,0.00222136]
[1730755766934,0.074101,67526.0,67522.0,0.00222136]
[1730755767134,0.074104,67524.0,67522.0,0.00222136]
[1730755767535,0.074104,67524.0,67517.0,0.00088]
[1730755767536,0.518384,67523.0,67517.0,0.00088]
[1730755767841,0.518384,67523.0,67493.0,0.05891969]
[1730755767842,0.074115,67513.0,67511.0,0.074117]
[1730755768041,0.434916,67512.0,67511.0,0.074117]
[1730755768841,0.3608,67512.0,67506.0,0.074122]
[1730755769037,0.074121,67507.0,67506.0,0.074122]
[1730755769235,0.3608,67512.0,67499.0,1.5]
[1730755769437,0.3608,67505.0,67504.0,0.074125]
[1730755769744,0.3608,67512.0,67511.0,0.074117]
[1730755769938,0.3608,67512.0,67511.0,0.28771796]
[1730755771136,0.3608,67519.0,67511.0,0.21360096]
[1730755771349,0.3608,67519.0,67518.0,0.074109]
[1730755771948,0.3608,67519.0,67518.0,0.28770996]
[1730755772539,0.3608,67519.0,67518.0,0.21360096]
[1730755772847,0.3608,67519.0,67512.0,0.21360096]
[1730755773043,0.3608,67513.0,67512.0,0.074116]
[1730755773242,0.3608,67519.0,67512.0,0.21360096]
[1730755773446,0.3608,67519.0,67518.0,0.074109]
[1730755773845,0.3608,67519.0,67516.0,0.074112]
[1730755774040,0.434909,67519.0,67516.0,0.074112]
[1730755774542,0.3608,67519.0,67518.0,0.074109]
[1730755775255,0.07411,67518.0,67515.0,0.074112]
[1730755775445,0.07411,67518.0,67512.0,0.21360096]
[1730755775641,0.07411,67518.0,67517.0,0.07411]
[1730755776351,0.07411,67518.0,67512.0,0.21360096]
[1730755776352,0.3608,67519.0,67512.0,0.21360096]
[1730755776535,0.3608,67519.0,67518.0,0.074109]
[1730755777351,0.3608,67519.0,67518.0,0.21650493]
[1730755781574,0.0278607,67531.0,67518.0,0.21650493]
[1730755781575,0.0439,67532.0,67522.0,0.074104]
[1730755781747,0.3608,67534.0,67519.0,0.074108]
[1730755781748,0.3608,67534.0,67531.0,0.14239593]
[1730755781948,0.3608,67534.0,67532.0,0.074094]
[1730755782654,0.3608,67544.0,67531.0,0.21649093]
[1730755782956,0.3608,67544.0,67540.0,0.21648093]
[1730755783455,0.3608,67544.0,67540.0,0.14239593]
[1730755783755,0.3608,67544.0,67543.0,0.074082]
[1730755783960,0.3608,67552.0,67543.0,0.074082]
[1730755784256,0.3608,67552.0,67551.0,0.074073]
[1730755784559,0.3608,67557.0,67555.0,0.074068]
[1730755784765,0.38814566,67557.0,67555.0,0.074068]
[1730755785066,0.38814566,67557.0,67554.0,0.14239593]
[1730755785067,0.3608,67557.0,67556.0,0.074068]
[1730755787154,0.074072,67553.0,67550.0,0.074074]
[1730755787353,0.074077,67548.0,67545.0,0.074079]
[1730755787559,0.3608,67551.0,67541.0,0.14239593]
[1730755787560,0.7216,67551.0,67541.0,0.14239593]
[1730755787959,0.3608,67544.0,67543.0,0.074082]
[1730755788765,0.3608,67544.0,67522.0,0.24752]
[1730755788966,0.3608,67531.0,67530.0,0.074095]
[1730755790263,0.3608,67531.0,67530.0,0.21649093]
[1730755790466,0.3608,67531.0,67530.0,0.66073093]
[1730755792162,0.3608,67531.0,67530.0,0.24389075]
[1730755793764,0.3608,67531.0,67530.0,0.68813075]
[1730755794251,0.3608,67531.0,67530.0,0.24389075]
[1730755794952,0.3608,67531.0,67530.0,0.68813075]
[1730755795761,0.3608,67531.0,67530.0,2.18813075]
[1730755796163,0.3608,67531.0,67530.0,1.60149482]
[1730755797468,0.3608,67531.0,67530.0,0.074095]
[1730755797662,0.3995,67531.0,67530.0,0.074095]
[1730755798469,0.3608,67531.0,67530.0,0.074095]
[1730755801170,0.222916,67531.0,67530.0,0.518335]
[1730755801371,0.3608,67542.0,67541.0,0.074084]
[1730755801671,0.3608,67542.0,67541.0,0.21647993]
[1730755802168,0.3608,67547.0,67546.0,0.074079]
[1730755803066,0.3608,67556.0,67555.0,0.074069]
[1730755803770,0.3608,67573.0,67562.0,0.074061]
[1730755804095,0.0392,67572.0,67571.0,0.074051]
[1730755805367,0.0392,67572.0,67568.0,0.14239593]
[1730755805665,0.3608,67570.0,67552.0,0.074072]
[1730755805860,0.3608,67555.0,67552.0,0.074072]
[1730755806172,0.074083,67542.0,67539.0,0.04418977]
[1730755806375,0.3608,67540.0,67539.0,0.074086]
[1730755807273,0.3608,67540.0,67539.0,0.21648193]
[1730755809262,0.3608,67540.0,67539.0,0.074086]
[1730755811176,0.40046803,67540.0,67539.0,0.074086]
[1730755811568,0.3608,67540.0,67539.0,0.074086]
[1730755811778,0.40041963,67540.0,67528.0,0.213517]
[1730755811979,0.074094,67532.0,67525.0,0.10092478]
[1730755812285,0.12425296,67531.0,67527.0,0.074099]
[1730755812474,0.08486378,67530.0,67527.0,0.074099]
[1730755812784,0.03950995,67529.0,67528.0,0.074098]
[1730755812966,0.03950995,67529.0,67525.0,0.07309817]
[1730755813167,0.3608,67526.0,67525.0,0.07309817]
[1730755813378,0.40030995,67526.0,67525.0,0.07309817]
[1730755813566,0.44568085,67526.0,67522.0,0.074104]
[1730755813767,0.03950995,67525.0,67523.0,0.074104]
[1730755813983,0.03950995,67524.0,67523.0,0.074104]
[1730755815469,0.3608,67526.0,67522.0,0.213517]
[1730755815673,0.3608,67526.0,67525.0,0.074102]
[1730755815870,0.3608,67526.0,67518.0,1.50076]
[1730755816075,0.03907137,67525.0,67524.0,0.074103]
[1730755816779,0.03907137,67525.0,67521.0,0.213517]
[1730755816780,0.3608,67526.0,67525.0,0.074102]
[1730755817078,0.39994444,67526.0,67525.0,0.074102]
[1730755817972,0.3608,67526.0,67525.0,0.074102]
[1730755819274,0.3608,67526.0,67521.0,0.11829577]
[1730755819478,0.3608,67526.0,67521.0,0.074106]
[1730755819676,0.074102,67525.0,67520.0,0.00222144]
[1730755819879,0.3608,67526.0,67523.0,0.074104]
[1730755820069,0.3608,67526.0,67520.0,0.00222144]
[1730755820272,0.434901,67526.0,67520.0,0.00222144]
[1730755820474,0.434901,67526.0,67520.0,0.07632844]
[1730755820676,0.3608,67526.0,67520.0,0.00222144]
[1730755820979,0.3608,67526.0,67509.0,0.41504]
[1730755820980,0.434906,67521.0,67515.0,0.074113]
[1730755821181,0.434906,67521.0,67511.0,1.5]
[1730755821182,0.074109,67519.0,67511.0,1.5]
[1730755821370,0.3608,67513.0,67511.0,1.574116]
[1730755821573,0.0408,67512.0,67511.0,1.574116]
[1730755821883,0.0408,67512.0,67504.0,0.0720032]
[1730755822070,0.0401,67511.0,67507.0,0.074121]
[1730755822271,0.0401,67511.0,67508.0,0.07412]
[1730755822478,0.0401,67511.0,67509.0,0.074118]
[1730755823285,0.07412,67509.0,67505.0,0.074123]
[1730755823477,0.07412,67509.0,67497.0,0.05891969]
[1730755823478,0.3608,67506.0,67503.0,1.5]
[1730755823876,0.3608,67506.0,67501.0,0.074128]
[1730755824077,0.0391,67505.0,67497.0,0.02686135]
[1730755824375,0.074135,67495.0,67494.0,1.50076]
[1730755824580,0.074131,67498.0,67482.0,0.04418977]
[1730755824777,0.3608,67493.0,67492.0,0.07636035]
[1730755825876,0.3608,67493.0,67492.0,0.00222235]
[1730755826381,0.434937,67493.0,67492.0,0.00222235]
[1730755827088,0.434937,67493.0,67480.0,0.213517]
[1730755827089,0.3608,67493.0,67480.0,0.213517]
[1730755827274,0.3608,67493.0,67476.0,0.074155]
[1730755827275,0.3608,67483.0,67476.0,0.074155]
[1730755827480,0.074161,67472.0,67464.0,0.02778169]
[1730755827787,0.3608,67477.0,67459.0,0.213517]
[1730755827788,0.3608,67469.0,67459.0,0.213517]
[1730755828087,0.3608,67477.0,67476.0,0.074156]
[1730755828276,0.3608,67483.0,67465.0,0.213517]
[1730755828473,0.074156,67476.0,67465.0,0.213517]
[1730755828672,0.074159,67474.0,67465.0,0.213517]
[1730755828994,0.3608,67477.0,67476.0,0.074156]
[1730755830376,0.3608,67484.0,67480.0,0.074151]
[1730755830786,0.3608,67484.0,67481.0,1.5]
[1730755831781,0.434947,67484.0,67481.0,1.5]
[1730755832179,0.3608,67484.0,67483.0,0.074148]
[1730755833484,0.3608,67484.0,67483.0,0.287665]
[1730755834092,0.3608,67492.0,67483.0,0.658077]
[1730755834277,0.0755,67506.0,67491.0,0.213517]
[1730755834478,0.3608,67494.0,67490.0,0.07414]
[1730755834783,0.3608,67494.0,67492.0,0.074138]
[1730755834985,0.3608,67494.0,67493.0,0.074137]
[1730755835989,0.3608,67501.0,67485.0,0.213517]
[1730755836174,0.074135,67495.0,67485.0,0.213517]
[1730755836493,0.434931,67499.0,67485.0,0.213517]
[1730755836682,0.3608,67493.0,67492.0,0.074137]
[1730755836985,0.436571,67499.0,67486.0,0.074144]
[1730755837188,0.3608,67499.0,67498.0,0.074131]
[1730755837773,0.3608,67499.0,67484.0,0.04418977]
[1730755837978,0.3608,67499.0,67481.0,1.52836675]
[1730755837979,0.074136,67495.0,67481.0,1.52836675]
[1730755838185,0.3608,67490.0,67489.0,0.074141]
[1730755838992,0.36252001,67499.0,67483.0,0.213517]
[1730755839288,0.3608,67499.0,67497.0,0.074132]
[1730755839491,0.3608,67499.0,67498.0,0.074131]
[1730755839680,0.3608,67499.0,67483.0,0.213517]
[1730755839681,0.3608,67499.0,67491.0,0.074138]
[1730755839880,0.074139,67491.0,67485.0,0.074146]
[1730755840094,0.3608,67486.0,67482.0,0.11833877]
[1730755840280,0.3608,67486.0,67482.0,0.074149]
[1730755840881,0.3608,67486.0,67483.0,0.074147]
[1730755841082,0.3608,67486.0,67479.0,1.50076]
[1730755841383,0.3608,67486.0,67479.0,1.5]
[1730755841986,0.3608,67486.0,67485.0,0.074146]
[1730755842802,0.074146,67485.0,67479.0,1.574151]
[1730755843088,0.3608,67480.0,67479.0,1.5]
[1730755843277,0.3608,67480.0,67477.0,0.00088]
[1730755843278,0.3608,67480.0,67477.0,0.074154]
[1730755843478,0.3608,67480.0,67479.0,0.074152]
[1730755845383,0.3608,67480.0,67470.0,0.02706906]
[1730755845384,0.3608,67480.0,67469.0,0.00222304]
[1730755845584,0.434962,67470.0,67469.0,0.00222304]
[1730755846395,0.074165,67468.0,67455.0,0.3608]
[1730755846690,0.3608,67464.0,67463.0,0.07417]
[1730755848087,0.3608,67470.0,67469.0,0.074163]
[1730755849898,0.3608,67470.0,67469.0,0.04393438]
[1730755854012,0.3608,67470.0,67469.0,1.54393438]
[1730755855606,0.3608,67470.0,67469.0,1.58812415]
[1730755855812,0.3608,67470.0,67469.0,1.54393438]
[1730755856204,0.3608,67470.0,67456.0,0.04418977]
[1730755856205,0.074168,67465.0,67456.0,0.04418977]
[1730755856515,0.074168,67465.0,67450.0,0.213517]
[1730755856516,0.434969,67464.0,67451.0,0.04418977]
[1730755856811,0.434969,67464.0,67460.0,0.074173]
[1730755857116,0.434969,67464.0,67455.0,1.86164]
[1730755857117,0.074174,67460.0,67455.0,1.86164]
[1730755857320,0.3608,67464.0,67455.0,1.8608]
[1730755858410,0.07417,67463.0,67459.0,0.074173]
[1730755859317,0.07417,67463.0,67460.0,0.074173]
[1730755859521,0.3608,67464.0,67462.0,0.074171]
[1730755860729,0.3608,67471.0,67470.0,0.074162]
[1730755861514,0.3608,67471.0,67470.0,1.574162]
[1730755862221,0.3608,67471.0,67470.0,1.787679]
[1730755862424,0.3608,67471.0,67470.0,1.574162]
[1730755863710,0.3608,67486.0,67485.0,0.074146]
[1730755863910,0.3608,67490.0,67486.0,0.074145]
[1730755864113,0.3608,67490.0,67489.0,0.074141]
[1730755864317,0.3608,67490.0,67484.0,0.04428972]
[1730755864318,0.574317,67490.0,67484.0,0.04428533]
[1730755864617,0.3608,67485.0,67476.0,0.04428533]
[1730755864823,0.074159,67473.0,67471.0,0.04428533]
[1730755865007,0.0412,67472.0,67469.0,0.04650847]
[1730755865218,0.0412,67472.0,67471.0,0.074161]
[1730755865517,0.0412,67472.0,67471.0,0.11844633]
[1730755865824,0.3608,67481.0,67470.0,0.074162]
[1730755866119,0.3608,67481.0,67469.0,0.0612761]
[1730755866120,0.3608,67481.0,67479.0,0.074152]
[1730755866521,0.3608,67481.0,67474.0,0.04431992]
[1730755866717,0.3608,67481.0,67480.0,0.074151]
[1730755867114,0.3608,67481.0,67480.0,0.11847092]
[1730755867320,0.0412,67486.0,67479.0,0.05905296]
[1730755867616,0.3608,67494.0,67483.0,0.05905296]
[1730755867811,0.3608,67494.0,67489.0,0.04433627]
[1730755868017,0.3608,67494.0,67493.0,0.074137]
[1730755868519,0.3608,67494.0,67493.0,0.11847327]
[1730755868822,0.3608,67494.0,67493.0,0.074137]
[1730755869410,0.3608,67494.0,67493.0,0.11845656]
[1730755869740,0.00168,67503.0,67493.0,0.13318996]
[1730755870023,0.3608,67508.0,67502.0,0.074127]
[1730755870227,0.3608,67508.0,67505.0,0.0443237]
[1730755870530,0.3608,67508.0,67504.0,0.1184487]
[1730755870717,0.3608,67508.0,67504.0,0.0443237]
[1730755870923,0.3608,67508.0,67503.0,0.0443237]
[1730755871115,0.3608,67508.0,67500.0,0.074128]
[1730755871319,0.3608,67508.0,67501.0,0.074128]
[1730755871825,0.0415,67509.0,67497.0,0.213517]
[1730755872127,0.434923,67507.0,67498.0,0.074131]
[1730755872329,0.07721314,67506.0,67498.0,0.074131]
[1730755872533,0.0396,67506.0,67499.0,0.07413]
[1730755873031,0.0396,67506.0,67501.0,0.074128]
[1730755873231,0.0396,67506.0,67496.0,0.3608]
[1730755873435,0.0396,67506.0,67501.0,0.074128]
[1730755873623,0.074124,67505.0,67496.0,0.434933]
[1730755873925,0.3608,67500.0,67493.0,0.00076]
[1730755874132,0.3608,67500.0,67499.0,0.07413]
[1730755874827,0.3608,67500.0,67490.0,0.426157]
[1730755875125,0.3608,67492.0,67489.0,0.00076]
[1730755875328,0.3608,67492.0,67489.0,0.074141]
[1730755875914,0.3608,67492.0,67479.0,1.52676743]
[1730755876124,0.3608,67492.0,67489.0,0.074141]
[1730755876423,0.3608,67492.0,67479.0,1.5]
[1730755876623,0.3608,67480.0,67477.0,0.074153]
[1730755876832,0.3608,67480.0,67479.0,0.074152]
[1730755877722,0.3608,67480.0,67474.0,0.074157]
[1730755878027,0.3608,67480.0,67469.0,1.50222314]
[1730755878028,0.3608,67480.0,67479.0,0.074152]
[1730755878421,0.3608,67480.0,67474.0,0.074157]
[1730755878627,0.434952,67480.0,67474.0,0.074157]
[1730755879017,0.434952,67480.0,67470.0,0.074162]